bitfinex/quotes_ETHUSD_20260202
["timestamp","ask_amount","ask_price","bid_price","bid_amount"]
[1770045618842,12.76800966,2364.5,2362.9,1.05802192]
[1770045619076,12.76800966,2364.5,2362.3,4.2331536]
[1770045619077,14.76972551,2364.4,2362.7,0.887]
[1770045619380,14.76972551,2364.4,2362.8,1.05806296]
[1770045619381,13.86201381,2364.2,2362.8,1.05806296]
[1770045619551,2.38468425,2364.1,2362.8,1.05806296]
[1770045619757,1.09400415,2364.5,2362.8,1.05806296]
[1770045620172,13.19035729,2364.5,2362.8,1.05806296]
[1770045620370,13.00451018,2364.4,2362.8,1.05806296]
[1770045620573,13.00451018,2364.3,2362.7,1.94508216]
[1770045620776,14.98551433,2364.2,2362.5,1.05816739]
[1770045620959,14.98551433,2364.2,2362.2,0.61788086]
[1770045620960,12.09635314,2364.0,2362.6,1.05815431]
[1770045621158,13.00451018,2363.9,2362.5,1.05916552]
[1770045621360,0.90815704,2363.8,2362.7,1.05810192]
[1770045621867,0.0011,2364.0,2362.7,1.05810192]
[1770045622045,0.90829483,2363.9,2362.7,1.05810192]
[1770045622244,0.0011,2364.0,2362.7,1.05810192]
[1770045622446,0.90833645,2363.9,2362.7,1.58725671]
[1770045622746,0.0011,2364.0,2362.7,1.58725671]
[1770045622947,0.0011,2364.0,2362.5,0.001]
[1770045622948,12.09635314,2363.7,2362.5,0.001]
[1770045623152,1.09400415,2363.8,2362.3,0.001]
[1770045623153,12.09635314,2363.4,2362.3,0.001]
[1770045623369,0.90834868,2363.3,2362.3,0.001]
[1770045623576,1.4985706,2363.2,2362.3,0.001]
[1770045623743,1.4985706,2363.2,2361.6,0.39661436]
[1770045623744,13.19035729,2362.9,2361.6,0.39661436]
[1770045624080,1.45904838,2364.2,2362.7,1.05811148]
[1770045624256,0.0011,2364.2,2362.7,1.96223257]
[1770045624453,0.0011,2364.2,2362.8,0.61948242]
[1770045624649,0.0011,2364.2,2362.9,1.05802192]
[1770045624846,0.0011,2364.2,2362.9,1.07514301]
[1770045625052,12.09635314,2365.5,2363.7,0.01712109]
[1770045625246,12.09635314,2365.5,2363.8,0.887]
[1770045625495,12.09635314,2365.5,2362.9,13.86223011]
[1770045625496,12.09935314,2365.2,2363.5,0.887]
[1770045625776,13.30628845,2365.1,2362.9,1.05802192]
[1770045625979,1.20993531,2365.1,2363.4,0.01712109]
[1770045626178,0.003,2365.2,2363.4,0.01712109]
[1770045626581,0.003,2365.2,2362.9,1.05802192]
[1770045626582,12.98335314,2365.1,2362.9,1.05802192]
[1770045626770,12.09635314,2365.0,2363.0,0.887]
[1770045626952,0.887,2365.1,2363.2,0.01712109]
[1770045627147,0.003,2365.2,2363.6,9.47643012]
[1770045627392,0.003,2365.2,2364.0,0.01712109]
[1770045627706,0.003,2365.2,2364.1,0.887]
[1770045629196,0.003,2365.2,2364.2,1.05744014]
[1770045629582,12.09635314,2365.1,2363.9,4.22976059]
[1770045629787,1.45794838,2364.7,2362.2,0.887]
[1770045630078,1.45794838,2364.7,2362.7,0.01712109]
[1770045630079,12.09635314,2364.6,2362.7,0.01712109]
[1770045630279,12.09635314,2364.6,2363.0,1.05795336]
[1770045630450,12.09635314,2364.6,2363.1,0.887]
[1770045630648,1.35543015,2364.5,2363.1,0.887]
[1770045630872,13.45178329,2364.5,2362.5,1.05816897]
[1770045631075,12.09635314,2364.1,2362.6,0.887]
[1770045631284,13.55430152,2364.1,2362.6,0.887]
[1770045631483,12.09635314,2363.9,2362.6,0.887]
[1770045631777,1.20963531,2363.8,2362.6,0.887]
[1770045632155,1.45794838,2364.3,2362.6,0.887]
[1770045632352,12.09635314,2364.4,2362.6,0.887]
[1770045633080,12.09635314,2364.4,2362.7,1.05811148]
[1770045633255,13.55430152,2364.2,2362.6,1.05815367]
[1770045633456,13.55430152,2364.2,2362.7,0.887]
[1770045633674,12.09635314,2363.9,2362.7,0.887]
[1770045634866,1.57401975,2364.1,2362.7,0.887]
[1770045635068,1.45794838,2364.2,2362.7,1.9450906]
[1770045635291,13.45178329,2364.5,2362.7,1.9450906]
[1770045635292,1.45794838,2364.3,2362.7,1.9450906]
[1770045635590,13.55430152,2364.4,2362.8,0.887]
[1770045635757,3.54132614,2364.5,2362.8,0.887]
[1770045635758,12.09635314,2364.2,2362.8,0.887]
[1770045635955,0.90746832,2364.1,2362.8,0.887]
[1770045636180,2.20785047,2364.0,2362.8,0.887]
[1770045636377,0.90746832,2363.9,2362.8,0.887]
[1770045636576,0.90746832,2363.9,2362.8,0.888]
[1770045637099,0.90746832,2363.9,2362.9,1.05802192]
[1770045637891,0.90746832,2363.9,2362.8,0.001]
[1770045637892,12.09635314,2363.7,2362.8,0.001]
[1770045638156,12.09635314,2363.5,2362.5,0.887]
[1770045638401,0.90746832,2363.4,2362.5,0.887]
[1770045638604,13.00382146,2363.3,2361.9,1.0584365]
[1770045638805,0.90746832,2363.2,2362.1,4.23340829]
[1770045638961,1.45794838,2363.7,2362.2,1.57034778]
[1770045639161,0.90721667,2363.6,2362.4,1.05823689]
[1770045639364,0.90721667,2363.5,2362.4,1.05823689]
[1770045639590,0.90721667,2363.4,2362.4,1.05823689]
[1770045639803,0.90721667,2363.3,2362.4,1.05823689]
[1770045639972,1.45030342,2363.7,2362.4,1.05823689]
[1770045640165,0.90763649,2363.6,2362.2,0.51204083]
[1770045640359,13.00398963,2363.6,2362.3,0.887]
[1770045640564,2.9082518,2363.7,2362.3,0.887]
[1770045640565,0.90763649,2363.5,2362.3,1.94527053]
[1770045640872,12.09635314,2364.1,2362.4,0.01712109]
[1770045641055,0.90734276,2364.0,2362.5,1.05820105]
[1770045641259,0.0011,2364.5,2363.0,0.01712109]
[1770045641455,2.18889599,2365.2,2363.0,0.01712109]
[1770045641456,0.003,2365.2,2363.7,0.01712109]
[1770045641704,0.003,2365.2,2364.0,0.01712109]
[1770045641859,0.003,2365.2,2364.1,0.887]
[1770045642058,0.003,2365.2,2364.0,0.01712109]
[1770045642257,0.003,2365.2,2364.1,0.887]
[1770045642473,0.003,2365.2,2363.8,0.01712109]
[1770045642474,0.003,2365.2,2364.2,0.887]
[1770045642694,0.003,2365.2,2364.3,0.887]
[1770045643199,0.003,2365.2,2364.4,1.0573507]
[1770045643495,12.09635314,2366.4,2364.7,0.01712109]
[1770045643699,12.09635314,2367.0,2365.0,0.01712109]
[1770045644001,1.81453955,2367.2,2364.5,0.61737535]
[1770045644002,13.00136969,2366.9,2365.1,0.887]
[1770045644303,0.90501655,2366.8,2365.1,0.887]
[1770045644502,0.90501655,2366.8,2364.5,0.61737535]
[1770045644503,12.09635314,2366.6,2364.5,0.61737535]
[1770045644659,0.90501655,2366.5,2364.6,0.887]
[1770045644860,12.09635314,2366.6,2364.6,0.887]
[1770045645081,13.00069696,2366.5,2364.7,1.05721656]
[1770045645291,12.09635314,2367.0,2364.7,1.05721656]
[1770045645494,0.90334687,2366.9,2364.8,0.61730828]
[1770045645702,0.90335031,2366.8,2364.8,0.61730828]
[1770045645873,12.09635314,2366.8,2364.9,0.887]
[1770045646070,2.11306556,2366.7,2364.8,0.61730828]
[1770045646279,0.90343025,2366.6,2365.0,0.887]
[1770045646461,13.30598845,2366.7,2365.1,0.887]
[1770045646658,12.9991814,2366.6,2365.1,0.887]
[1770045646891,12.09635314,2366.4,2365.1,0.887]
[1770045647092,2.41946629,2367.0,2363.9,1.907]
[1770045647093,12.09635314,2366.2,2363.9,1.907]
[1770045647293,4.97330296,2366.3,2363.8,4.23045386]
[1770045647294,12.09635314,2365.8,2364.2,1.05741571]
[1770045647471,3.02487317,2365.7,2364.5,0.887]
[1770045647672,17.68044056,2366.7,2364.5,0.887]
[1770045647867,14.81605011,2366.6,2364.6,0.25158286]
[1770045648075,0.90288549,2366.5,2364.6,0.25158286]
[1770045648297,1.76804406,2366.6,2365.0,0.01712109]
[1770045648594,12.14512056,2367.2,2365.3,0.01712109]
[1770045648793,12.14512056,2367.2,2365.4,0.887]
[1770045649213,12.14512056,2367.2,2365.5,1.05685901]
[1770045649396,0.003,2367.5,2365.5,10.53028913]
[1770045649723,12.14812056,2367.5,2365.6,1.56618463]
[1770045650013,12.14812056,2367.5,2365.5,1.05385901]
[1770045650772,12.62099999,2367.3,2365.5,1.05385901]
[1770045650973,12.62099999,2367.3,2365.4,5.11443606]
[1770045650974,12.62099999,2366.8,2365.4,0.887]
[1770045651210,0.2335703,2366.9,2364.4,0.57148235]
[1770045651211,12.62099999,2365.8,2364.4,0.57148235]
[1770045651372,12.85457029,2365.3,2363.8,0.887]
[1770045651724,12.85457029,2365.3,2363.0,12.75582446]
[1770045651725,12.62099999,2364.8,2363.0,0.001]
[1770045652008,12.62099999,2364.4,2363.0,1.05896922]
[1770045652208,12.62099999,2365.1,2363.1,0.52910245]
[1770045652882,12.62099999,2364.9,2363.1,0.52910245]
[1770045653073,12.62099999,2363.7,2362.5,0.887]
[1770045653274,10.121968,2363.3,2361.8,0.888]
[1770045653480,0.2335703,2363.2,2361.8,0.888]
[1770045653681,0.9017787,2363.1,2361.8,0.888]
[1770045653875,1.2621,2363.3,2361.8,0.888]
[1770045653876,1.2621,2363.3,2362.5,1.05819314]
[1770045654110,4.759,2364.2,2361.8,0.888]
[1770045654284,0.90141645,2364.1,2362.5,1.05817]
[1770045654625,18.43412199,2363.9,2361.8,0.888]
[1770045654787,2.315,2363.7,2362.3,1.05827106]
[1770045654993,1.45794838,2364.4,2362.5,1.0581958]
[1770045655192,12.62099999,2364.1,2362.6,0.5291]
[1770045655399,1.62648444,2364.3,2362.7,0.887]
[1770045655602,20.92342399,2365.0,2362.7,0.887]
[1770045655805,0.90087147,2364.9,2362.7,0.887]
[1770045655985,1.45794838,2365.4,2362.9,0.01712109]
[1770045656308,12.62099999,2365.6,2363.2,0.01712109]
[1770045656617,12.62099999,2365.6,2363.3,0.01712109]
[1770045656618,0.90057882,2365.5,2363.3,0.01712109]
[1770045656912,12.62099999,2365.6,2363.2,0.01712109]
[1770045656913,1.35215788,2365.4,2363.2,0.01712109]
[1770045657119,1.35215788,2365.4,2363.1,9.47643012]
[1770045657283,1.35215788,2365.4,2363.3,1.05784284]
[1770045659246,1.35215788,2365.4,2363.2,1.05785845]
[1770045659247,12.62099999,2365.0,2363.2,1.05785845]
[1770045659397,12.62099999,2364.7,2362.6,4.23257084]
[1770045659708,12.62099999,2364.7,2362.1,22.23225458]
[1770045659709,4.274886,2364.4,2362.9,0.887]
[1770045659880,12.62099999,2364.5,2363.2,4.23154875]
[1770045660085,5.36397,2364.8,2363.1,1.05791374]
[1770045660293,39.64608599,2364.6,2362.9,0.887]
[1770045660612,14.07894837,2365.3,2363.2,1.05787942]
[1770045660909,1.76170022,2365.2,2363.3,0.52894299]
[1770045661096,17.20741899,2365.7,2363.3,0.52894299]
[1770045661299,0.90061791,2365.6,2363.4,1.05779808]
[1770045661479,2.22929,2366.2,2364.0,0.01712109]
[1770045661681,0.90046563,2366.1,2364.1,0.887]
[1770045661891,0.90049985,2366.0,2364.1,0.887]
[1770045662094,12.62099999,2366.2,2364.1,0.887]
[1770045662305,2.16289518,2366.1,2364.1,10.36343012]
[1770045662510,0.0011,2366.3,2364.8,0.01712109]
[1770045662709,0.0011,2366.3,2364.9,0.887]
[1770045663159,0.003,2367.5,2365.8,9.47643012]
[1770045663304,12.930076,2368.4,2366.3,12.75582446]
[1770045663638,1.2930076,2368.3,2366.7,0.01712109]
[1770045663938,0.18041386,2368.9,2366.5,0.01712109]
[1770045664144,0.89857938,2368.8,2366.4,0.887]
[1770045664431,13.62079141,2368.7,2365.9,1.05668033]
[1770045664634,13.62079141,2368.7,2366.0,2.36298318]
[1770045664635,7.700105,2368.4,2366.0,2.36298318]
[1770045664833,12.62099999,2368.5,2366.2,0.01712109]
[1770045665041,2.74219444,2368.6,2366.3,0.01712109]
[1770045665339,0.18041386,2368.9,2366.8,9.47643012]
[1770045665502,0.18041386,2368.9,2367.0,0.01712109]
[1770045665697,0.18041386,2368.9,2366.9,0.887]
[1770045665913,3.353992,2368.8,2366.1,12.75582446]
[1770045666134,0.18041386,2368.9,2366.3,4.22599361]
[1770045666135,9.531126,2368.5,2366.3,4.22599361]
[1770045666335,2.105871,2368.3,2366.2,0.887]
[1770045666534,0.0011,2368.4,2366.6,1.05635854]
[1770045666773,0.0011,2368.4,2366.6,1.07347963]
[1770045666911,0.18041386,2368.9,2367.2,0.01712109]
[1770045667113,0.18041386,2368.9,2367.3,0.90412109]
[1770045667440,0.1145849,2370.0,2368.0,9.49355121]
[1770045667639,0.1145849,2370.0,2368.1,0.96647621]
[1770045667842,0.1145849,2370.0,2368.4,0.01712109]
[1770045668229,0.1145849,2370.0,2368.1,2.87247621]
[1770045668544,0.1145849,2370.0,2368.5,0.887]
[1770045668908,12.85457029,2369.8,2368.5,0.887]
[1770045669143,0.1145849,2370.0,2368.5,0.887]
[1770045669460,0.1145849,2370.0,2368.5,1.94251776]
[1770045670312,0.1145849,2370.0,2368.6,0.886]
[1770045670927,5.416336,2369.9,2367.5,4.22381416]
[1770045671127,12.73558489,2370.0,2367.3,9.42480114]
[1770045671128,0.1145849,2370.0,2368.5,1.05548277]
[1770045671433,0.1145849,2370.0,2368.6,0.886]
[1770045673257,0.1145849,2370.0,2368.7,1.05543124]
[1770045673457,0.1145849,2370.0,2368.6,0.886]
[1770045673761,0.1145849,2370.0,2367.1,1.92212109]
[1770045673762,15.61990929,2369.9,2366.8,9.42480114]
[1770045674065,12.62099999,2369.6,2368.1,1.05565845]
[1770045674272,12.62099999,2369.6,2368.2,0.886]
[1770045674449,5.257215,2369.5,2367.9,1.05574629]
[1770045674760,12.62099999,2369.1,2366.9,4.22486447]
[1770045674928,12.62099999,2369.1,2367.2,4.22436734]
[1770045675123,12.62099999,2369.1,2367.4,1.0559805]
[1770045675328,12.62099999,2369.1,2367.1,1.05614464]
[1770045675928,0.003,2369.3,2367.1,10.49806687]
[1770045676133,0.003,2369.3,2367.2,1.56086455]
[1770045676335,0.003,2369.3,2367.2,14.31668901]
[1770045676833,0.003,2369.3,2367.3,0.886]
[1770045677166,0.003,2369.3,2367.4,0.886]
[1770045677167,0.2335703,2368.9,2367.4,0.886]
[1770045677334,1.28545703,2368.9,2366.1,12.77294555]
[1770045677539,12.62099999,2369.2,2367.4,1.05599904]
[1770045677860,2.466379,2369.1,2367.5,0.886]
[1770045678065,12.62099999,2369.2,2367.5,0.886]
[1770045678565,3.101379,2369.1,2367.5,0.886]
[1770045678769,3.199582,2369.1,2367.5,0.886]
[1770045678932,14.20305819,2369.0,2367.6,0.886]
[1770045679132,12.62099999,2368.8,2367.6,0.886]
[1770045679328,4.134749,2369.2,2367.6,0.886]
[1770045679759,0.2335703,2369.1,2367.6,0.886]
[1770045679963,0.25062543,2369.1,2367.6,0.886]
[1770045680132,0.2335703,2369.1,2367.6,0.886]
[1770045680540,2.760044,2369.1,2367.6,0.886]
[1770045680735,15.46004525,2369.1,2367.6,0.886]
[1770045680969,12.70000125,2369.1,2367.6,0.886]
[1770045681339,12.93357155,2368.1,2365.5,21.39212501]
[1770045681560,9.42480114,2368.5,2365.8,1.05669585]
[1770045681561,12.70000125,2367.7,2365.8,1.05669585]
[1770045681746,12.70000125,2367.7,2366.1,1.05657807]
[1770045681948,12.70000125,2367.7,2366.0,1.05659985]
[1770045682282,12.93357155,2367.4,2365.9,0.886]
[1770045682483,1.29335716,2367.3,2366.0,1.05660745]
[1770045682631,0.2335703,2367.7,2365.9,5.1126585]
[1770045682835,12.70000125,2367.8,2366.2,1.05654636]
[1770045683075,12.70000125,2368.3,2366.2,1.05654636]
[1770045683368,12.70000125,2368.3,2365.9,0.886]
[1770045683369,6.15084,2368.0,2366.0,1.05663567]
[1770045683536,12.70000125,2367.6,2366.1,0.886]
[1770045684137,0.2335703,2367.5,2366.1,0.886]
[1770045684334,12.70000125,2367.5,2366.1,0.886]
[1770045684535,12.70000125,2368.1,2366.1,0.886]
[1770045684735,15.56788525,2367.9,2366.1,0.886]
[1770045684962,4.512769,2367.8,2366.1,0.886]
[1770045685157,12.70000125,2367.9,2366.1,0.886]
[1770045685368,12.70000125,2367.9,2366.2,1.05654636]
[1770045685568,12.70000125,2367.9,2366.1,1.94256968]
[1770045685878,1.40813392,2367.8,2366.2,0.61689337]
[1770045686076,4.473126,2368.4,2366.2,0.61689337]
[1770045686375,12.70000125,2368.2,2366.2,0.61689337]
[1770045686577,7.497225,2368.0,2366.3,0.886]
[1770045686748,1.11337796,2368.4,2366.3,0.886]
[1770045686944,1.27000012,2369.0,2366.5,11.98444496]
[1770045687289,0.003,2369.3,2367.6,1.0559216]
[1770045687582,0.003,2369.3,2367.7,0.886]
[1770045687879,0.003,2369.3,2367.8,0.01712109]
[1770045688048,0.003,2369.3,2367.9,21.39212501]
[1770045688248,0.1145849,2370.0,2368.0,2.14092461]
[1770045688554,0.1145849,2370.0,2368.1,0.01712109]
[1770045688746,0.1145849,2370.0,2368.0,2.14092461]
[1770045688947,0.1145849,2370.0,2367.8,1.904]
[1770045689146,2.857954,2369.9,2367.5,4.22368643]
[1770045689377,0.89650425,2369.8,2367.8,1.05583241]
[1770045689683,0.1145849,2370.0,2368.3,0.01712109]
[1770045689883,0.1145849,2370.0,2368.1,11.96732387]
[1770045690087,0.1145849,2370.0,2368.2,1.1984445]
[1770045690997,0.89826355,2369.9,2368.3,0.886]
[1770045691193,0.89826355,2369.9,2368.4,0.886]
[1770045691194,12.70000125,2369.7,2368.4,0.886]
[1770045691351,0.89831466,2369.8,2368.4,0.886]
[1770045691352,0.89831466,2369.6,2368.4,1.94154559]
[1770045691555,0.89831466,2369.5,2368.4,1.94156335]
[1770045691749,1.11337796,2369.8,2368.4,1.94156335]
[1770045692070,0.90041224,2369.7,2368.4,0.886]
[1770045692270,1.11337796,2369.4,2367.8,1.05582366]
[1770045692474,1.11337796,2369.4,2366.9,11.96732387]
[1770045692475,1.11337796,2369.1,2366.9,11.96732387]
[1770045692791,2.0137902,2369.1,2367.7,1.05584949]
[1770045692962,2.0137902,2369.1,2366.9,11.96732387]
[1770045693170,2.0137902,2369.0,2368.3,1.05560701]
[1770045693483,1.11337796,2369.4,2368.4,0.886]
[1770045693670,1.11337796,2369.4,2368.5,0.885]
[1770045693980,0.90258635,2369.3,2368.5,0.885]
[1770045694180,1.45904838,2369.6,2368.5,0.885]
[1770045694181,0.0011,2369.6,2368.5,0.885]
[1770045694381,0.90242652,2369.5,2368.5,1.50128414]
[1770045694552,0.0011,2369.6,2368.5,0.61628414]
[1770045694754,0.90242243,2369.5,2368.6,0.885]
[1770045695065,0.0011,2369.6,2368.6,0.885]
[1770045695380,0.1145849,2370.0,2368.8,1.05538669]
[1770045695691,0.1145849,2370.0,2368.9,0.885]
[1770045696556,2.18589599,2372.2,2370.1,11.96732387]
[1770045696896,12.70000125,2373.4,2370.1,11.96732387]
[1770045696897,12.81458615,2374.7,2372.2,0.01712109]
[1770045697055,12.81458615,2374.7,2372.3,0.885]
[1770045697396,12.81458615,2374.7,2372.5,1.05374077]
[1770045697689,0.01712109,2375.7,2374.6,9.42480114]
[1770045697872,0.01712109,2375.5,2374.7,1.26768481]
[1770045698075,0.01712109,2376.5,2374.8,1.26768481]
[1770045698264,4.532329,2376.3,2374.9,1.26768481]
[1770045698465,1.72323303,2376.2,2375.2,0.082878]
[1770045698684,12.70000125,2376.6,2375.3,0.885]
[1770045698883,12.71712234,2376.5,2375.4,0.885]
[1770045699053,12.70000125,2375.5,2373.0,9.42480114]
[1770045699256,2.919255,2375.3,2373.6,0.885]
[1770045699456,12.70000125,2378.4,2375.0,2.919255]
[1770045699655,12.70000125,2378.4,2374.1,0.3359703]
[1770045699656,0.01712109,2375.1,2373.7,1.05320807]
[1770045699853,18.671146,2376.0,2373.8,1.26273054]
[1770045700053,2.1270255,2378.0,2373.6,1.05323678]
[1770045700054,12.70000125,2376.5,2373.9,0.885]
[1770045700284,12.70000125,2376.3,2374.0,0.01712109]
[1770045700460,9.42480114,2377.4,2374.0,0.37674056]
[1770045700663,9.42480114,2377.4,2374.1,0.885]
[1770045700664,12.70000125,2376.5,2374.1,0.885]
[1770045700862,9.42480114,2376.8,2373.0,11.96732387]
[1770045700863,12.70000125,2376.1,2373.2,4.21371541]
[1770045701063,12.70000125,2375.7,2373.8,0.885]
[1770045701415,8.339923,2377.0,2374.2,0.01712109]
[1770045701559,22.12480239,2377.1,2374.9,0.01712109]
[1770045701560,2.91511492,2376.9,2374.9,0.01712109]
[1770045701905,2.91511492,2376.9,2374.5,0.01712109]
[1770045701906,2.583783,2378.4,2376.0,0.01712109]
[1770045702058,12.70000125,2378.4,2375.1,12.85232387]
[1770045702257,12.70000125,2378.2,2375.1,12.85232387]
[1770045702493,0.1145849,2379.5,2377.3,0.01712109]
[1770045702704,0.00581401,2378.7,2377.4,0.01712109]
[1770045702999,0.00581401,2378.7,2376.1,21.4092461]
[1770045703300,9.45117,2378.4,2375.4,11.96732387]
[1770045703471,2.771118,2378.4,2375.8,9.42480114]
[1770045703659,2.169241,2378.4,2375.9,0.01712109]
[1770045703856,18.360891,2378.0,2375.5,1.1984445]
[1770045704055,3.118862,2377.8,2375.6,0.884]
[1770045704258,11.286428,2377.5,2375.1,1.05258639]
[1770045704616,12.70000125,2377.6,2374.6,21.39212501]
[1770045704617,3.868679,2377.3,2375.2,0.884]
[1770045704812,3.868679,2377.3,2374.6,21.39212501]
[1770045704813,3.435987,2377.2,2374.6,21.39212501]
[1770045704959,2.811987,2377.3,2375.3,0.884]
[1770045705159,12.70000125,2377.6,2375.3,0.884]
[1770045705160,3.020015,2377.5,2375.5,1.0523981]
[1770045705388,9.65837144,2378.0,2375.5,1.0523981]
[1770045705389,2.178033,2378.0,2375.5,1.0523981]
[1770045705603,12.80240125,2377.9,2375.3,0.884]
[1770045705762,12.70000125,2377.7,2375.4,1.05243401]
[1770045706105,12.70000125,2377.7,2375.5,0.01712109]
[1770045706262,12.70000125,2378.5,2376.1,0.01712109]
[1770045706458,2.487398,2378.6,2376.2,0.90112109]
[1770045706782,0.00581401,2378.7,2376.3,0.01712109]
[1770045706968,0.00581401,2378.7,2376.4,0.01712109]
[1770045707504,0.00581401,2378.7,2375.8,0.01712109]
[1770045707505,12.70000125,2378.5,2375.5,0.1024]
[1770045707712,0.00581401,2378.7,2376.5,1.05193614]
[1770045707713,0.0011,2377.5,2376.5,1.05193614]
[1770045708002,0.00581401,2378.7,2376.5,1.05193614]
[1770045708003,0.00581401,2378.7,2376.6,0.598]
[1770045708154,0.00581401,2378.7,2376.7,0.01712109]
[1770045708356,0.00581401,2378.7,2377.0,0.01712109]
[1770045708572,0.00581401,2378.7,2376.8,9.42480114]
[1770045708808,0.00581401,2378.7,2377.8,0.01712109]
[1770045709010,0.00581401,2378.7,2376.9,0.883]
[1770045709187,6.958148,2378.6,2376.9,0.883]
[1770045709357,4.316591,2378.6,2376.9,0.883]
[1770045709775,0.00581401,2378.7,2376.9,0.883]
[1770045709776,8.646695,2378.4,2376.9,0.883]
[1770045709977,0.00581401,2378.7,2376.9,0.883]
[1770045710462,3.17616,2378.6,2376.9,0.883]
[1770045710692,16.231835,2378.4,2376.6,0.883]
[1770045710893,0.2335703,2378.5,2376.6,0.883]
[1770045711092,0.2335703,2378.5,2375.5,16.0453487]
[1770045711388,11.70506262,2377.9,2375.0,0.01712109]
[1770045711601,12.04103292,2377.5,2374.9,1.0526759]
[1770045711763,3.226389,2377.4,2375.1,0.883]
[1770045711958,11.70506262,2377.5,2375.1,0.883]
[1770045712159,2.51092,2377.4,2375.2,0.883]
[1770045712360,2.51092,2377.4,2374.1,4.21210918]
[1770045712361,11.93863292,2377.1,2374.1,4.21210918]
[1770045712590,3.62496,2376.5,2374.5,1.05282628]
[1770045712888,3.62496,2376.5,2374.5,1.05284569]
[1770045713061,0.3359703,2376.6,2374.4,0.883]
[1770045713062,14.480395,2376.3,2374.4,0.883]
[1770045713261,11.70506262,2376.7,2374.4,0.883]
[1770045713262,11.70506262,2376.7,2374.7,1.05273218]
[1770045713487,11.70506262,2376.7,2374.5,1.05285323]
[1770045713672,5.4180683,2377.2,2374.8,0.01712109]
[1770045713876,0.2335703,2377.2,2374.5,1.06997432]
[1770045714119,0.2335703,2377.2,2374.1,4.21141292]
[1770045714120,0.2335703,2376.8,2374.1,4.21141292]
[1770045714264,11.93863292,2376.4,2374.2,0.883]
[1770045714458,15.549682,2376.3,2374.2,0.883]
[1770045714782,9.42480114,2377.3,2374.2,0.883]
[1770045714783,11.70506262,2378.0,2375.3,0.01712109]
[1770045714967,11.70506262,2378.0,2375.4,0.883]
[1770045714968,2.284563,2377.9,2375.4,0.883]
[1770045715170,20.434802,2377.7,2374.8,0.01712109]
[1770045715504,11.80746262,2377.1,2374.9,0.883]
[1770045715663,5.224334,2376.7,2374.9,0.883]
[1770045715868,2.483542,2376.7,2374.9,0.883]
[1770045716066,0.1024,2376.9,2374.9,0.883]
[1770045716261,10.30780114,2377.1,2374.5,4.21123557]
[1770045716262,11.70506262,2376.7,2374.5,4.21123557]
[1770045716460,11.70506262,2376.7,2373.9,12.70819946]
[1770045716461,6.587984,2376.6,2374.6,1.93580804]
[1770045716783,11.70506262,2376.7,2374.6,1.93580804]
[1770045717182,0.883,2377.1,2374.6,1.93580804]
[1770045717363,2.48581,2377.0,2374.6,1.93580804]
[1770045717570,11.70506262,2377.4,2374.7,0.61472052]
[1770045717768,41.28452462,2378.0,2374.7,0.61472052]
[1770045718025,11.70506262,2377.4,2374.0,0.01712109]
[1770045718170,11.70506262,2377.4,2372.8,2.19325306]
[1770045718171,23.078325,2376.1,2374.1,0.883]
[1770045718497,2.61996,2375.8,2374.2,0.883]
[1770045719003,11.70506262,2375.9,2372.8,9.42480114]
[1770045719163,11.70506262,2375.9,2373.2,0.01712109]
[1770045719365,0.9854,2376.2,2373.2,0.883]
[1770045719366,0.01712108,2374.5,2373.2,0.883]
[1770045719600,0.01712108,2374.7,2373.2,0.883]
[1770045719972,0.01712108,2374.7,2373.3,0.883]
[1770045720167,0.01712108,2374.7,2372.1,3.70814023]
[1770045720168,17.181909,2374.8,2372.1,3.70814023]
[1770045720370,0.01712108,2373.3,2372.1,3.70814023]
[1770045720593,0.01712108,2374.1,2372.1,4.59114023]
[1770045720980,3.489898,2374.0,2372.1,4.59114023]
[1770045721309,2.589122,2374.8,2372.2,0.01712109]
[1770045721516,2.347284,2374.8,2372.2,0.46082613]
[1770045721669,9.42480114,2374.9,2372.2,0.46082613]
[1770045721670,7.810505,2374.4,2372.3,0.883]
[1770045721869,11.70506262,2374.5,2372.3,0.883]
[1770045721870,18.451722,2374.1,2372.3,0.883]
[1770045722217,0.01712108,2373.4,2372.1,3.70814023]
[1770045722507,0.01712108,2373.4,2371.9,0.001]
[1770045722803,0.3359703,2373.8,2372.0,0.883]
[1770045722804,2.43018,2373.8,2372.0,0.883]
[1770045723131,9.13346,2373.8,2372.0,0.883]
[1770045723287,11.70506262,2373.9,2372.0,0.883]
[1770045723487,3.022098,2373.8,2372.0,0.883]
[1770045723714,3.64588,2374.5,2372.0,0.883]
[1770045723915,21.12986376,2375.3,2372.4,0.01712109]
[1770045724210,7.36509,2375.2,2372.5,0.883]
[1770045724511,7.36509,2375.2,2371.9,4.21699251]
[1770045724512,0.01712108,2374.1,2372.6,0.883]
[1770045724810,9.42480114,2375.3,2372.7,0.883]
[1770045725031,3.762389,2375.1,2372.7,0.883]
[1770045725189,11.673652,2374.9,2372.1,0.01712109]
[1770045725390,4.628199,2374.7,2372.3,1.05382961]
[1770045725581,0.1024,2374.8,2372.4,0.64886853]
[1770045725982,0.883,2375.6,2372.4,0.64886853]
[1770045725983,0.883,2375.6,2372.7,0.01712109]
[1770045726220,5.23108393,2375.5,2372.7,0.01712109]
[1770045726425,13.427206,2375.6,2372.7,12.70819946]
[1770045726720,9.42480114,2375.3,2372.8,0.883]
[1770045726883,5.48627,2375.1,2372.9,1.35911995]
[1770045727080,3.660134,2375.1,2372.8,0.883]
[1770045727283,2.733134,2375.1,2372.8,0.883]
[1770045727536,0.1024,2375.4,2372.9,1.05356315]
[1770045727812,9.42480114,2374.7,2372.4,1.70262106]
[1770045728000,2.063,2374.6,2372.6,4.21477267]
[1770045728202,11.70506262,2375.0,2372.8,1.05360538]
[1770045728615,10.324382,2374.9,2372.6,4.21473166]
[1770045728807,0.3359703,2374.8,2371.9,0.01812109]
[1770045728995,22.02944462,2374.9,2371.9,0.01812109]
[1770045728996,0.1024,2374.9,2372.8,1.05360277]
[1770045729194,9.65837144,2375.2,2372.9,0.883]
[1770045729195,0.44294304,2374.8,2372.9,0.883]
[1770045729395,0.01712108,2375.6,2373.1,1.05347435]
[1770045729706,21.12986376,2374.6,2372.3,0.883]